bitfinex/quotes_ETHUSD_20250130
["timestamp","ask_amount","ask_price","bid_price","bid_amount"]
[1738245349439,6.06654,3261.0,3260.9,0.11175882]
[1738245350358,3.06654,3261.0,3260.9,0.11175882]
[1738245350643,4.06616,3261.0,3260.9,0.11175882]
[1738245353309,3.06654,3261.0,3260.9,0.11175882]
[1738245354952,3.06654,3261.0,3260.9,0.15738182]
[1738245355353,3.06654,3261.0,3260.9,0.11175882]
[1738245356666,3.89904,3261.0,3260.9,0.11175882]
[1738245358672,3.90654,3261.0,3260.9,0.11175882]
[1738245358874,4.903837,3261.0,3260.9,0.11175882]
[1738245359485,7.903837,3261.0,3260.9,0.11175882]
[1738245360192,7.911337,3261.0,3260.9,8.82e-06]
[1738245361069,8.126837,3261.0,3260.9,8.82e-06]
[1738245361806,8.134337,3261.0,3260.9,8.82e-06]
[1738245362394,8.684337,3261.0,3260.9,8.82e-06]
[1738245363419,3.06814,3259.3,3259.2,1.15780309]
[1738245363771,3.06804,3259.5,3259.2,1.20427318]
[1738245363969,3.06804,3259.5,3259.2,0.73877009]
[1738245364186,6.13608,3259.5,3259.2,0.73877009]
[1738245364410,3.06805,3259.4,3259.2,0.73877009]
[1738245365383,3.86394,3259.3,3259.2,0.04647009]
[1738245365579,7.07944,3259.3,3259.2,0.04647009]
[1738245365801,7.07944,3259.3,3258.9,0.44548333]
[1738245365802,3.06842,3259.0,3258.9,0.44548333]
[1738245366603,3.06787,3259.6,3259.0,0.6923]
[1738245366604,3.06809,3259.4,3259.0,0.6923]
[1738245367015,3.06809,3259.4,3259.1,0.04264225]
[1738245367183,3.0682,3259.3,3259.1,0.04264225]
[1738245367390,3.06774,3259.8,3259.1,0.07332373]
[1738245367601,3.06774,3259.8,3259.3,0.6923]
[1738245367803,0.62442043,3260.3,3259.4,0.376045]
[1738245367804,3.0672,3260.3,3259.4,0.376045]
[1738245367972,3.0672,3260.3,3259.4,0.07319757]
[1738245368175,3.06709,3260.5,3259.7,3.06773]
[1738245368430,3.06666,3260.9,3259.9,3.06754]
[1738245368630,3.06711,3260.4,3259.8,0.73451196]
[1738245368832,3.06711,3260.4,3260.0,0.04212668]
[1738245369133,3.06693,3260.6,3260.1,0.04208869]
[1738245369494,3.06674,3260.8,3260.0,3.06742]
[1738245369495,3.06683,3260.7,3260.0,3.06742]
[1738245369717,3.06674,3260.8,3260.1,0.65865092]
[1738245369933,3.06674,3260.8,3260.2,0.6923]
[1738245370229,3.06674,3260.8,3260.2,3.75954]
[1738245370393,3.06674,3260.8,3260.3,0.04201272]
[1738245370827,3.06674,3260.8,3260.2,0.6923]
[1738245371032,3.06674,3260.8,3260.4,0.04197474]
[1738245371195,3.06674,3260.8,3260.3,0.47963394]
[1738245371396,3.06674,3260.8,3260.5,0.04193677]
[1738245371599,3.06674,3260.8,3260.4,0.04197474]
[1738245371794,3.06657,3261.0,3260.7,0.6923]
[1738245372026,6.13281,3261.2,3260.7,0.6923]
[1738245372229,3.06639,3261.2,3260.7,0.6923]
[1738245372413,3.06639,3261.2,3260.8,0.04157188]
[1738245372712,3.06655,3261.0,3260.7,0.6923]
[1738245372916,3.06655,3261.0,3260.8,0.04152852]
[1738245373112,3.06655,3261.0,3260.7,0.6923]
[1738245373326,3.0667,3260.9,3260.8,0.04152852]
[1738245373639,3.0667,3260.9,3260.4,0.6923]
[1738245374134,3.0667,3260.9,3260.5,0.04164244]
[1738245374526,3.06648,3261.1,3260.5,3.10864244]
[1738245375226,3.06648,3261.1,3260.6,3.09757786]
[1738245375604,3.06648,3261.1,3260.7,0.04156649]
[1738245376156,6.13259,3261.3,3260.7,0.04156649]
[1738245376359,3.06637,3261.2,3260.7,0.66217993]
[1738245377255,3.06626,3261.3,3260.8,0.6923]
[1738245377618,3.06626,3261.3,3260.9,0.04114975]
[1738245379038,4.10575,3261.8,3260.9,0.04114975]
[1738245379039,3.06594,3261.7,3260.9,0.04114975]
[1738245379239,3.06594,3261.7,3261.1,3.06643]
[1738245379458,3.06594,3261.7,3261.1,3.37718798]
[1738245379657,3.06574,3261.9,3261.3,3.06618]
[1738245379877,3.06561,3262.0,3261.4,3.10697677]
[1738245380593,3.06575,3261.9,3261.4,0.04082677]
[1738245380809,3.82093,3262.3,3261.6,0.6923]
[1738245380981,3.06519,3262.5,3261.6,0.6923]
[1738245381162,3.06519,3262.5,3261.8,3.0657]
[1738245381479,3.2169,3262.7,3261.7,0.0406417]
[1738245381480,3.06533,3262.3,3261.9,0.31063417]
[1738245381645,3.06533,3262.3,3261.9,0.04036461]
[1738245381845,3.06515,3262.5,3261.6,0.0306561]
[1738245382045,3.06505,3262.6,3262.0,0.6923]
[1738245382232,3.06513,3262.5,3262.1,0.04028872]
[1738245382435,5.49498,3262.7,3262.1,0.04028872]
[1738245382436,3.06541,3262.2,3262.1,0.04028872]
[1738245383047,3.678482,3262.2,3262.1,0.04028872]
[1738245383447,3.678482,3262.2,3262.1,8.72e-06]
[1738245383448,7.518882,3262.2,3262.1,8.72e-06]
[1738245383684,3.06644,3261.1,3260.9,0.46559886]
[1738245383983,3.06623,3261.4,3261.0,0.03798022]
[1738245384352,3.620572,3262.2,3261.1,0.6923]
[1738245384353,3.06615,3261.5,3261.1,0.6923]
[1738245384541,3.06622,3261.4,3261.1,0.73035367]
[1738245384740,3.06624,3261.4,3261.1,0.73035367]
[1738245385054,3.06624,3261.4,3261.1,0.6923]
[1738245385255,3.06624,3261.4,3261.2,0.03801571]
[1738245385858,3.06626,3261.3,3261.2,0.03801571]
[1738245386124,3.06624,3261.4,3261.2,0.03801571]
[1738245387073,3.06626,3261.3,3261.2,0.03801571]
[1738245388049,3.06616,3261.4,3261.2,0.03801571]
[1738245388847,3.06598,3261.6,3261.2,0.03801571]
[1738245388848,3.06608,3261.5,3261.2,0.03801571]
[1738245389994,3.06598,3261.6,3261.2,0.03801571]
[1738245390153,3.06616,3261.4,3261.2,0.03801571]
[1738245394088,3.06601,3261.6,3261.2,0.03801571]
[1738245394621,6.13206,3261.6,3261.2,0.03801571]
[1738245394777,3.06617,3261.4,3261.2,0.03801571]
[1738245397186,3.06617,3261.4,3260.9,0.6923]
[1738245397396,3.066,3261.6,3261.3,0.03793436]
[1738245397594,3.066,3261.6,3260.9,3.75888]
[1738245397595,3.066,3261.6,3261.0,3.06651]
[1738245397801,6.13168,3261.8,3261.4,0.03792427]
[1738245398027,3.06581,3261.8,3261.2,3.0663]
[1738245398195,3.06581,3261.8,3261.5,0.03788631]
[1738245398538,3.06581,3261.8,3261.6,0.03784216]
[1738245398739,3.06581,3261.8,3261.2,3.0663]
[1738245398912,3.06581,3261.8,3261.3,0.03791578]
[1738245399097,3.06589,3261.7,3261.3,0.03791578]
[1738245399612,3.06581,3261.8,3261.3,0.03791578]
[1738245399807,3.06598,3261.6,3261.3,0.03791578]
[1738245399994,3.06616,3261.4,3261.3,0.03791578]
[1738245400190,3.06616,3261.4,3260.9,3.75893]
[1738245400391,3.06616,3261.4,3261.3,0.03791578]
[1738245400616,3.06616,3261.4,3261.0,0.22428661]
[1738245400847,3.06616,3261.4,3261.3,0.03791578]
[1738245401019,3.06616,3261.4,3261.0,0.22428661]
[1738245401220,3.06616,3261.4,3261.3,0.03791578]
[1738245401409,3.06616,3261.4,3261.0,0.22428661]
[1738245401610,3.06616,3261.4,3261.3,0.03791578]
[1738245401836,3.06616,3261.4,3261.0,0.22428661]
[1738245402037,3.06616,3261.4,3261.3,0.03791578]
[1738245402206,3.06616,3261.4,3261.0,0.22428661]
[1738245402409,3.06616,3261.4,3261.3,0.03791578]
[1738245402612,6.13213,3261.6,3261.0,0.22428661]
[1738245402812,6.13213,3261.6,3261.3,0.03791578]
[1738245403033,3.06606,3261.6,3261.0,3.06652]
[1738245403248,3.06608,3261.5,3261.4,0.03787782]
[1738245403742,3.06608,3261.5,3260.9,3.75884]
[1738245403938,3.06621,3261.4,3261.0,0.03802966]
[1738245405145,3.06621,3261.4,3261.0,0.34502966]
[1738245405642,3.06621,3261.4,3261.0,0.56958649]
[1738245405801,3.06617,3261.4,3261.0,0.26258649]
[1738245407038,0.7912,3261.5,3261.0,0.26258649]
[1738245407253,3.06601,3261.6,3261.0,3.76192214]
[1738245408037,3.06601,3261.6,3261.1,0.22455683]
[1738245408420,3.06613,3261.5,3261.2,0.03795374]
[1738245409031,6.13229,3261.5,3261.2,0.03795374]
[1738245409220,3.06613,3261.5,3261.2,0.03795374]
[1738245411229,3.0659,3261.7,3261.2,0.03795374]
[1738245411429,3.06599,3261.6,3261.2,0.03795374]
[1738245412112,3.06597,3261.6,3261.2,0.03795374]
[1738245412854,3.06597,3261.6,3261.3,0.22455683]
[1738245413211,3.06597,3261.6,3261.4,0.03787471]
[1738245414126,3.06597,3261.6,3261.1,0.22455683]
[1738245414317,3.06597,3261.6,3261.2,0.03795063]
[1738245414960,3.0658,3261.8,3261.2,3.43711538]
[1738245415111,3.0658,3261.8,3261.3,3.06625]
[1738245415310,3.0658,3261.8,3261.4,0.03785304]
[1738245415743,3.06572,3261.9,3261.4,3.10401304]
[1738245415944,3.06572,3261.9,3261.4,0.03785304]
[1738245416193,0.692447,3261.9,3261.4,0.03785304]
[1738245416471,3.85874,3262.0,3261.5,0.6923]
[1738245416814,3.06564,3262.0,3261.6,0.03775547]
[1738245417320,3.06552,3262.1,3261.6,3.10371547]
[1738245417636,3.06518,3262.5,3262.0,0.6923]
[1738245417946,3.06518,3262.5,3262.1,0.03748836]
[1738245418143,3.06486,3262.8,3262.1,0.03748836]
[1738245418317,3.065,3262.7,3262.2,3.09604051]
[1738245418527,3.065,3262.7,3262.3,0.03741248]
[1738245418746,3.065,3262.7,3262.2,0.03065051]
[1738245418934,3.06513,3262.5,3262.4,0.03736836]
[1738245419225,3.065,3262.7,3261.8,0.6923]
[1738245419226,3.06561,3262.0,3261.8,0.6923]
[1738245419443,3.06561,3262.0,3261.5,0.6923]
[1738245419658,3.06558,3262.1,3261.5,0.6923]
[1738245419861,3.06558,3262.1,3261.5,1.0299559]
[1738245420070,3.06537,3262.3,3261.6,3.06592]
[1738245420364,3.06518,3262.5,3262.0,0.6923]
[1738245420517,6.13039,3262.5,3262.0,0.6923]
[1738245420871,3.06518,3262.5,3262.0,0.6923]
[1738245421014,3.06525,3262.4,3262.0,0.6923]
[1738245421221,3.06538,3262.3,3262.0,0.6923]
[1738245421855,6.13038,3262.5,3262.0,0.6923]
[1738245422066,3.06518,3262.5,3262.0,0.6923]
[1738245422486,3.06518,3262.5,3262.0,3.75788]
[1738245422973,3.06518,3262.5,3262.1,0.0359669]
[1738245424066,0.752,3262.9,3262.3,3.06525]
[1738245424274,3.81678,3262.9,3262.4,3.06516]
[1738245424436,3.81678,3262.9,3262.4,3.10101309]
[1738245425025,3.065,3262.7,3262.4,0.03585309]
[1738245425272,3.06513,3262.5,3262.4,0.03585309]
[1738245425473,3.06513,3262.5,3262.0,0.6923]
[1738245425676,3.06513,3262.5,3262.4,0.03585309]
[1738245425871,6.13002,3262.7,3262.0,4.440188]
[1738245426029,3.06504,3262.6,3262.4,0.03585309]
[1738245426245,3.065,3262.7,3262.0,4.440188]
[1738245426429,3.06518,3262.5,3262.0,1.374668]
[1738245426630,3.0652,3262.5,3262.0,1.374668]
[1738245426834,3.06542,3262.2,3262.0,0.6923]
[1738245427039,0.8226,3262.3,3261.4,0.6923]
[1738245427267,3.06576,3261.9,3261.4,0.6923]
[1738245427446,3.06594,3261.7,3261.4,0.6923]
[1738245427654,0.784,3262.1,3261.1,0.6923]
[1738245427861,0.784,3262.1,3261.1,1.068175]
[1738245427862,3.06594,3261.7,3261.1,1.068175]
[1738245428179,3.06594,3261.7,3261.1,1.29232734]
[1738245428348,3.06611,3261.5,3261.1,1.29232734]
[1738245428881,3.06618,3261.4,3261.1,0.91645234]
[1738245429177,3.06598,3261.6,3261.1,0.91645234]
[1738245430030,3.06618,3261.4,3261.1,0.6923]
[1738245430480,3.06629,3261.3,3261.1,0.6923]
[1738245430685,3.06618,3261.4,3260.8,3.75897]
[1738245430973,3.06618,3261.4,3260.8,4.47222219]
[1738245431185,3.06618,3261.4,3260.8,4.441558]
[1738245431352,3.06631,3261.3,3260.9,0.22416655]
[1738245431557,3.06618,3261.4,3260.9,0.22416655]
[1738245432762,3.06635,3261.2,3260.9,0.22416655]
[1738245433285,3.06654,3261.0,3260.9,0.22416655]
[1738245433487,3.82054,3261.0,3260.9,0.22416655]
[1738245433687,3.82054,3261.0,3260.7,0.22416655]
[1738245433688,3.06673,3260.8,3260.7,0.22416655]
[1738245434192,3.06673,3260.8,3260.7,0.25959628]
[1738245434356,3.07423,3260.8,3260.7,0.25959628]
[1738245434559,4.740707,3260.8,3260.7,0.22416655]
[1738245434777,4.740707,3260.8,3259.9,0.6923]
[1738245434938,3.06756,3260.0,3259.6,0.6923]
[1738245435143,3.06741,3260.1,3259.7,0.03480817]
[1738245436928,3.06724,3260.3,3259.7,0.03480817]
[1738245437242,3.06724,3260.3,3259.7,0.41737161]
[1738245437824,3.06724,3260.3,3259.7,3.48511161]
[1738245438126,3.0673,3260.2,3259.7,0.41737161]
[1738245438995,3.85384,3260.8,3259.7,3.28901175]
[1738245439228,3.679663,3261.2,3259.7,3.28901175]
[1738245439229,3.06658,3261.0,3259.9,0.6923]
[1738245439411,0.7798,3261.1,3259.9,0.6923]
[1738245439412,0.7798,3261.1,3260.5,3.06698]
[1738245439628,3.06635,3261.2,3260.6,0.6923]
[1738245439828,3.06628,3261.3,3260.7,3.06676]
[1738245440355,3.06628,3261.3,3260.8,0.03417019]
[1738245440563,3.06628,3261.3,3260.7,3.06676]
[1738245440861,3.06628,3261.3,3260.8,0.03417019]
[1738245441065,3.06641,3261.2,3260.8,0.03417019]
[1738245441358,3.06641,3261.2,3260.9,0.03397736]
[1738245441526,3.06641,3261.2,3260.6,0.6923]
[1738245441863,3.06641,3261.2,3260.7,0.0340533]
[1738245442352,3.06655,3261.0,3260.7,0.0340533]
[1738245442509,3.06666,3260.9,3260.3,3.75949]
[1738245442715,3.06666,3260.9,3260.4,0.03417342]
[1738245442954,3.06646,3261.1,3260.4,3.10127342]
[1738245443155,3.06646,3261.1,3260.5,3.06696]
[1738245443459,3.06646,3261.1,3260.6,0.03411295]
[1738245443957,3.06682,3260.7,3260.6,0.03411295]
[1738245444123,3.06682,3260.7,3260.0,0.6923]
[1738245444480,3.06682,3260.7,3260.1,0.03431214]
[1738245444608,3.06682,3260.7,3260.1,3.10164214]
[1738245445161,3.067,3260.6,3260.1,0.03431214]
[1738245445340,3.06706,3260.5,3259.9,3.06756]
[1738245445543,3.06706,3260.5,3260.0,0.03435013]
[1738245445712,3.06711,3260.4,3259.7,6.8277]
[1738245445913,3.0672,3260.3,3259.8,0.03442611]
[1738245446143,3.06706,3260.5,3259.8,0.03442611]
[1738245446466,3.06706,3260.5,3259.9,3.06755]
[1738245446831,3.06706,3260.5,3260.0,0.03435013]
[1738245447364,3.06706,3260.5,3260.1,0.03431214]
[1738245447365,3.06712,3260.4,3260.1,0.03431214]
[1738245447572,3.0672,3260.3,3259.7,3.75998]
[1738245447736,6.13415,3260.5,3259.8,3.10203611]
[1738245447932,3.06714,3260.4,3259.8,3.10203611]
[1738245449126,3.06714,3260.4,3259.8,3.10208611]
[1738245450235,6.13433,3260.4,3259.8,3.10208611]
[1738245450429,3.06714,3260.4,3259.8,0.03442611]
[1738245450674,3.06714,3260.4,3259.9,3.06756]
[1738245451177,3.06714,3260.4,3260.0,0.03443995]
[1738245451359,3.06714,3260.4,3259.9,3.06756]
[1738245451567,3.06714,3260.4,3260.0,0.03443995]
[1738245451749,6.826122,3260.6,3259.9,3.06756]
[1738245451950,3.06705,3260.5,3260.0,0.03443995]
[1738245452264,3.759122,3260.6,3259.9,3.06756]
[1738245452472,3.06684,3260.7,3260.1,3.10172196]
[1738245452782,3.06684,3260.7,3260.2,0.03436398]
[1738245454181,3.06707,3260.5,3259.9,3.0675]
[1738245454352,3.06707,3260.5,3260.0,0.03443995]
[1738245454681,3.06707,3260.5,3259.9,3.0675]
[1738245454850,3.06713,3260.4,3260.1,0.03440196]
[1738245455052,3.06713,3260.4,3260.0,0.03443995]
[1738245455258,3.06713,3260.4,3259.7,3.76002]
[1738245455458,3.06713,3260.4,3260.1,0.03329685]
[1738245455754,3.06713,3260.4,3260.2,0.03325887]
[1738245455958,3.06713,3260.4,3259.8,3.06763]
[1738245456313,3.06735,3260.2,3259.9,0.03337283]
[1738245456485,3.06728,3260.3,3259.9,0.03337283]
[1738245456658,3.06739,3260.1,3259.7,0.6923]
[1738245456854,3.06728,3260.3,3260.0,0.03233774]
[1738245457043,3.06728,3260.3,3259.7,3.76002]
[1738245457044,3.06728,3260.3,3259.8,3.06766]
[1738245457240,3.06684,3260.7,3260.1,3.09967975]
[1738245457441,3.06708,3260.5,3259.9,3.06753]
[1738245457655,3.0672,3260.3,3260.2,0.03228035]
[1738245457867,3.06732,3260.2,3259.9,0.28044134]
[1738245458891,6.1343,3260.4,3259.8,0.28044134]
[1738245459202,0.0075,3260.7,3259.8,3.34809134]
[1738245459362,0.0075,3260.7,3259.9,3.06756]
[1738245459363,3.06707,3260.5,3259.9,3.06756]
[1738245459559,3.06696,3260.6,3260.0,3.06747]
[1738245459964,3.06696,3260.6,3260.1,3.06736]
[1738245460173,3.06696,3260.6,3260.0,3.06747]
[1738245460374,3.06696,3260.6,3260.1,3.06738]
[1738245460570,3.06681,3260.8,3260.4,0.6923]
[1738245462206,3.06654,3261.0,3260.5,3.067]
[1738245462496,3.06637,3261.2,3260.7,3.06675]
[1738245462905,3.06617,3261.4,3261.0,0.6923]
[1738245463310,3.06612,3261.5,3261.0,3.75882]
[1738245463679,3.06601,3261.6,3261.0,3.75882]
[1738245463879,6.13206,3261.6,3261.0,3.75882]
[1738245464422,3.06612,3261.5,3261.0,0.6923]
[1738245464577,0.36477172,3261.5,3261.0,0.6923]
[1738245464777,3.06625,3261.4,3261.0,0.6923]
[1738245465275,3.0659,3261.7,3261.2,3.06632]
[1738245465876,0.7864,3261.8,3261.2,3.06632]
[1738245466076,3.06578,3261.9,3261.4,3.06616]
[1738245466848,6.85935,3262.1,3261.4,3.06616]
[1738245466849,6.85935,3262.1,3261.4,3.06609]
[1738245467020,3.85935,3262.1,3261.5,3.75832]
[1738245467190,6.92494,3262.1,3261.5,0.6923]
[1738245467592,3.85935,3262.1,3261.5,0.6923]
[1738245467887,3.06574,3261.9,3261.6,0.03012697]
[1738245468293,3.06586,3261.8,3261.6,0.03012697]
[1738245468534,3.06588,3261.7,3261.6,0.03012697]
[1738245468844,3.06588,3261.7,3261.2,0.6923]
[1738245469302,3.06574,3261.9,3261.3,3.06623]
[1738245469507,3.06574,3261.9,3261.3,3.09631975]
[1738245470326,3.06574,3261.9,3261.4,0.10218294]
[1738245470709,6.13151,3261.9,3261.5,0.03000841]
[1738245470897,3.63504237,3261.9,3261.5,0.03000841]
[1738245471093,3.63504237,3261.9,3261.5,0.13218822]
[1738245471511,3.06584,3261.8,3261.6,0.10217667]
[1738245471889,3.06584,3261.8,3261.7,0.04089793]
[1738245472318,3.06584,3261.8,3261.7,0.14307147]
[1738245472647,3.81268624,3261.8,3261.7,0.14307147]
[1738245473241,3.81268624,3261.8,3261.7,0.10217354]
[1738245473242,3.82018624,3261.8,3261.7,0.10217354]
[1738245475768,3.06624,3261.4,3261.0,0.28010978]
[1738245475969,3.06624,3261.4,3261.1,0.03757069]
[1738245476175,3.06624,3261.4,3260.9,0.6923]
[1738245476332,3.06627,3261.3,3260.9,0.6923]
[1738245476668,3.06624,3261.4,3260.9,0.6923]
[1738245476669,3.06641,3261.2,3261.0,0.03768156]
[1738245476825,3.06624,3261.4,3261.0,0.03768156]
[1738245477384,3.0659,3261.7,3261.2,3.0663]
[1738245477697,6.13172,3261.8,3261.3,0.03754317]
[1738245477845,6.13172,3261.8,3261.3,0.13587865]
[1738245478237,6.13172,3261.8,3261.4,0.09833247]
[1738245478554,6.1317,3261.8,3261.4,0.09833247]
[1738245478762,3.06589,3261.7,3261.5,0.03743543]
[1738245479072,3.06576,3261.9,3261.5,0.03743543]
[1738245479269,3.06565,3262.0,3261.6,0.09832644]
[1738245479644,3.06565,3262.0,3261.7,0.03733192]
[1738245479832,6.13132,3262.0,3261.7,0.03733192]
[1738245480068,3.06565,3262.0,3261.7,0.03733192]
[1738245480271,3.06524,3262.4,3261.7,0.42673476]
[1738245480578,0.818,3263.4,3262.3,0.6923]
[1738245480876,0.818,3263.4,3262.2,3.0654]
[1738245480877,3.06934,3263.4,3262.7,0.6923]
[1738245481058,3.0645,3263.2,3262.7,0.6923]
[1738245481227,3.0645,3263.2,3262.8,0.04472086]
[1738245481426,3.06934,3263.4,3262.8,3.10951086]
[1738245481629,3.06931,3263.4,3262.8,3.06479]
[1738245481875,0.005,3263.4,3263.0,3.06466]
[1738245482229,0.005,3263.4,3263.0,3.10925445]
[1738245482428,0.005,3263.4,3263.0,4.38219892]
[1738245482671,0.005,3263.4,3263.0,4.35155445]
[1738245483229,0.005,3263.4,3263.0,4.65855445]
[1738245483472,0.005,3263.4,3263.0,5.7749358]
[1738245483657,0.005,3263.4,3263.0,4.9179358]
[1738245483859,3.06931,3263.4,3263.0,1.8532758]
[1738245484084,3.06438,3263.3,3263.0,0.04459445]
[1738245484376,3.2305424,3263.1,3262.7,0.6923]
[1738245484676,3.2305424,3263.1,3262.8,0.04472086]
[1738245484828,0.1659724,3263.1,3262.8,0.11564479]
[1738245485026,0.1659724,3263.1,3262.8,3.13573393]
[1738245485270,0.1659724,3263.1,3262.9,0.45372514]
[1738245485471,0.1659724,3263.1,3262.9,0.49838279]
[1738245485768,0.1659724,3263.1,3263.0,0.07091958]
[1738245485974,0.1659724,3263.1,3263.0,0.11551403]
[1738245487080,0.1659724,3263.1,3263.0,0.04459445]
[1738245487371,0.1659724,3263.1,3263.0,0.07091958]
[1738245487575,0.1659724,3263.1,3263.0,0.04459445]
[1738245487750,0.09436821,3263.1,3263.0,0.04459445]
[1738245487929,0.09436821,3263.1,3262.7,6.82212]
[1738245488133,0.09436821,3263.1,3262.9,3.06475]
[1738245488330,0.09436821,3263.1,3263.0,0.04459445]
[1738245489588,0.09436821,3263.1,3262.8,0.68527669]
[1738245489877,0.09436821,3263.1,3262.9,3.06473]
[1738245490078,0.09436821,3263.1,3263.0,3.64530554]
[1738245490237,0.09436821,3263.1,3263.0,5.07713676]
[1738245490878,0.09436821,3263.1,3263.0,5.04649122]
[1738245491930,0.09436821,3263.1,3263.0,5.07713286]
[1738245492333,0.09436821,3263.1,3263.0,5.04649122]
[1738245492788,0.09436821,3263.1,3263.0,4.49649122]
[1738245493086,0.09436821,3263.1,3263.0,0.73953122]
[1738245493250,0.09436821,3263.1,3262.9,3.06467]
[1738245494585,0.09436821,3263.1,3263.0,3.06466]
[1738245495576,0.09436821,3263.1,3263.0,3.75696]
[1738245495780,0.09436821,3263.1,3263.0,7.32196]
[1738245495781,8.21e-06,3263.1,3263.0,7.32196]
[1738245495991,8.21e-06,3263.1,3263.0,12.18644682]
[1738245496134,8.21e-06,3263.4,3263.3,10.50032014]
[1738245496334,3.85167,3265.4,3263.6,0.015]
[1738245496585,0.222,3266.0,3265.0,3.06274]
[1738245496586,3.06223,3265.6,3265.0,3.06274]
[1738245497003,3.06223,3265.6,3264.8,3.06296]
[1738245497206,3.06278,3265.0,3264.3,6.75567]
[1738245497494,0.7726,3265.2,3264.3,6.75567]
[1738245497495,3.06289,3264.9,3264.3,6.75567]
[1738245497813,3.06289,3264.9,3264.4,3.06334]
[1738245498201,3.0628,3265.0,3264.3,0.6923]
[1738245498525,3.06271,3265.1,3264.5,3.06324]
[1738245498931,0.7726,3265.2,3264.7,3.06304]
[1738245499502,3.06253,3265.3,3264.7,3.06304]
[1738245500139,3.06253,3265.3,3264.7,3.063]
[1738245500298,3.85092,3265.5,3264.6,0.55]
[1738245500299,2.98111479,3265.2,3264.6,0.55]
[1738245500501,3.27922627,3265.2,3264.3,3.7557]
[1738245500749,3.0628,3265.0,3264.4,3.06333]
[1738245501442,3.27922627,3265.2,3264.3,3.7557]
[1738245501645,3.27922627,3265.2,3264.5,3.06324]
[1738245501805,2.98111479,3265.2,3264.7,3.06304]
[1738245502507,2.98111479,3265.2,3264.5,6.12643]
[1738245502844,3.06269,3265.1,3264.5,3.06319]
[1738245503206,3.0628,3265.0,3264.5,3.06323]
[1738245503400,2.98111479,3265.2,3264.5,3.06323]
[1738245503713,3.06275,3265.1,3264.5,3.06323]
[1738245503918,3.06255,3265.3,3264.6,3.06315]
[1738245504113,3.06244,3265.4,3264.5,3.06323]
[1738245504352,3.0627,3265.1,3264.6,0.59654988]
[1738245504505,3.06257,3265.3,3264.5,3.61325]
[1738245504699,3.06241,3265.4,3264.5,3.61325]
[1738245504923,3.06265,3265.2,3264.5,6.67644]
[1738245505135,3.06265,3265.2,3264.5,3.61319]
[1738245506545,3.0627,3265.1,3264.5,3.61319]
[1738245506847,3.06265,3265.2,3264.5,3.61319]
[1738245507006,3.06286,3265.0,3264.4,0.55]
[1738245507210,3.063,3264.8,3264.3,0.6923]
[1738245507919,6.12572,3265.0,3264.3,0.6923]
[1738245508122,3.06286,3265.0,3264.3,0.97057751]
[1738245508353,3.06299,3264.8,3264.3,0.97057751]
[1738245508553,3.06299,3264.8,3264.3,1.00120814]
[1738245508848,3.06286,3265.0,3264.4,3.06333]
[1738245509256,3.06264,3265.2,3264.5,3.61325]
[1738245509755,3.06258,3265.3,3264.6,3.06308]
[1738245510111,3.85099,3265.5,3264.8,3.61291]
[1738245510408,3.06244,3265.4,3264.8,0.55]
[1738245510603,0.7886,3265.5,3264.9,3.06282]
[1738245510604,3.85093,3265.5,3264.9,3.06282]
[1738245510838,3.84969687,3265.5,3264.9,3.06282]
[1738245511222,3.06233,3265.5,3264.9,3.8009461]
[1738245511422,3.06233,3265.5,3264.9,3.77032]
[1738245511684,3.06207,3265.8,3265.0,0.55]
[1738245511892,3.06228,3265.6,3265.0,0.55]
[1738245512993,3.0622,3265.7,3265.1,3.494659]
[1738245513295,3.06225,3265.6,3265.1,0.432029]
[1738245513499,3.06203,3265.8,3264.5,3.77067]
[1738245513695,3.06265,3265.2,3264.6,0.55]
[1738245514000,3.06265,3265.2,3264.6,3.61315]
[1738245514498,3.06279,3265.0,3264.5,0.7075]
[1738245514701,3.06288,3264.9,3264.5,0.7075]
[1738245514897,3.06295,3264.9,3264.2,3.77103]
[1738245515060,3.06295,3264.9,3264.2,4.48513361]
[1738245515703,0.8062,3264.8,3264.1,3.0]
[1738245515882,3.06307,3264.7,3264.1,3.0]
[1738245516204,3.06321,3264.6,3264.0,3.0637]
[1738245516719,3.06321,3264.6,3263.9,0.7075]
[1738245516854,3.06332,3264.5,3263.9,4.148438]
[1738245517567,3.06332,3264.5,3263.9,4.17907134]
[1738245517758,3.06332,3264.5,3264.0,0.55]
[1738245518154,3.06332,3264.5,3263.9,0.7075]
[1738245518155,3.06358,3264.2,3263.9,0.7075]
[1738245518579,3.06376,3264.0,3263.2,3.06442]
[1738245518813,3.06376,3264.0,3263.3,0.7075]
[1738245518814,3.06393,3263.8,3263.3,0.7075]
[1738245519152,3.82033,3263.8,3263.1,3.0]
[1738245519502,3.06416,3263.6,3263.0,3.06463]
[1738245519799,3.06416,3263.6,3263.3,0.22371258]
[1738245520652,3.06428,3263.4,3263.3,0.22371258]
[1738245521281,3.06428,3263.4,3262.9,0.7075]
[1738245521489,3.06426,3263.5,3262.9,0.73814435]
[1738245521682,3.06416,3263.6,3262.9,0.73814435]
[1738245521882,3.06429,3263.4,3262.9,0.7075]
[1738245522200,3.06429,3263.4,3262.9,1.38779744]
[1738245522756,0.7564,3263.8,3263.0,0.55]
[1738245522757,3.06396,3263.8,3263.0,0.55]
[1738245522985,3.06407,3263.7,3263.2,3.61446]
[1738245523184,3.06385,3263.9,3263.2,3.61446]
[1738245523416,3.06385,3263.9,3263.3,3.09494106]
[1738245523611,3.06385,3263.9,3263.2,3.97891009]
[1738245523612,3.81386,3264.1,3263.4,0.55]
[1738245523801,3.81386,3264.1,3263.5,3.06416]
[1738245524008,3.06366,3264.1,3263.5,3.06416]
[1738245524207,0.6154365,3264.4,3264.0,3.06367]
[1738245524425,0.8197,3264.6,3264.0,3.06367]
[1738245524426,3.06321,3264.6,3264.0,3.06367]
[1738245524991,3.06331,3264.5,3263.9,0.58063474]